fUST/lending_fUST_20251215
["ID","MTS","AMOUNT","RATE_DAILY","PERIOD"]
[398483760,1765728254529,2317.22252699,0.0001594,2]
[398483774,1765728404665,412.30641153,0.00015842,5]
[398483776,1765728546741,2027.56971109,0.0001599,2]
[398483778,1765728627562,10000.0,0.00016,10]
[398483800,1765728632258,-625.36181593,0.0001601,2]
[398483802,1765728632269,-263.78239122,0.0001601,2]
[398483804,1765728632280,-2110.85579285,0.0001601,2]
[398483806,1765728632290,-235.20246381,0.00016011,2]
[398483808,1765728632299,-529.0,0.00016016,2]
[398483810,1765728632308,-244.16847174,0.00016016,2]
[398483812,1765728632317,-574.12855637,0.00016016,2]
[398483814,1765728632328,-3000.0,0.0001602,2]
[398483816,1765728632337,-300.0,0.00016024,2]
[398483819,1765728632347,-1200.0,0.00016024,2]
[398483822,1765728632356,-1200.0,0.00016025,2]
[398483825,1765728632365,-500.0,0.00016026,2]
[398483828,1765728632375,-500.0,0.00016028,2]
[398483831,1765728632384,-502.66627059,0.00016028,2]
[398483834,1765728632393,-214.727,0.00016029,2]
[398483837,1765728632402,-500.0,0.00016029,2]
[398483840,1765728632411,-500.0,0.00016029,2]
[398483843,1765728632421,-500.0,0.00016029,2]
[398483846,1765728632431,-500.0,0.00016029,2]
[398483848,1765728632440,-500.0,0.00016029,2]
[398483850,1765728632449,-500.0,0.00016029,2]
[398483852,1765728632458,-500.0,0.00016029,2]
[398483854,1765728632468,-500.0,0.00016029,2]
[398483856,1765728632477,-500.0,0.00016029,2]
[398483858,1765728632486,-500.0,0.00016029,2]
[398483860,1765728632496,-500.0,0.00016029,2]
[398483861,1765728632505,-500.0,0.00016029,2]
[398483863,1765728632514,-500.0,0.00016029,2]
[398483865,1765728632523,-500.0,0.00016029,2]
[398483867,1765728632532,-500.0,0.00016029,2]
[398483869,1765728632541,-500.0,0.00016029,2]
[398483870,1765728632551,-500.0,0.00016029,2]
[398483871,1765728632560,-500.0,0.00016029,2]
[398483873,1765728632569,-500.0,0.00016029,2]
[398483874,1765728632578,-500.0,0.00016029,2]
[398483876,1765728632587,-500.0,0.00016029,2]
[398483878,1765728632600,-500.0,0.00016029,2]
[398483880,1765728632610,-500.0,0.00016029,2]
[398483881,1765728632619,-574.57861606,0.00016029,2]
[398483882,1765728632628,-500.0,0.00016029,2]
[398483883,1765728632638,-500.0,0.00016029,2]
[398483884,1765728632647,-500.0,0.00016029,2]
[398483885,1765728632656,-500.0,0.00016029,2]
[398483886,1765728632665,-500.0,0.00016029,2]
[398483887,1765728632679,-500.0,0.00016029,2]
[398483888,1765728632688,-500.0,0.00016029,2]
[398483889,1765728632697,-459.23647342,0.00016029,2]
[398483890,1765728632705,-500.0,0.00016029,2]
[398483891,1765728632714,-500.0,0.00016029,2]
[398483892,1765728632722,-500.0,0.00016029,2]
[398483893,1765728632731,-500.0,0.00016029,2]
[398483894,1765728632740,-500.0,0.00016029,2]
[398483895,1765728632751,-286.29147804,0.00016029,2]
[398483896,1765728632760,-500.0,0.00016029,2]
[398483897,1765728632768,-500.0,0.00016029,2]
[398483898,1765728632777,-3000.0,0.0001603,2]
[398483899,1765728632786,-56899.29751618,0.00016033,2]
[398483900,1765728636160,151.0,0.000155,2]
[398483925,1765728638557,-3895.1999437,0.00016033,2]
[398483929,1765728640524,-131062.61806096,0.00016033,2]
[398483930,1765728640535,-458.9508,0.00016033,2]
[398483931,1765728640605,-12125.05912138,0.00016033,2]
[398483932,1765728642255,4532.5,0.00016,10]
[398483968,1765728643255,-1504.3502,0.00016033,2]
[398483978,1765728643450,-1940.55086211,0.00016033,2]
[398483991,1765728646315,-7485.85652062,0.00016033,2]
[398483992,1765728646327,-1808.64,0.00016033,2]
[398483993,1765728646397,-856.42660044,0.00016033,2]
[398483994,1765728646409,-1992.0,0.00016033,2]
[398483995,1765728646420,-3790.91277896,0.00016033,2]
[398483997,1765728732542,175.89354136,0.00015933,2]
[398483998,1765728734336,500.0,0.00013699,2]
[398483999,1765728734401,1000.0,0.00014247,2]
[398484000,1765728735105,500.0,0.00013699,2]
[398484001,1765728735161,1000.0,0.00014247,2]
[398484002,1765728749766,500.0,0.00013699,2]
[398484003,1765728749810,1000.0,0.00014247,2]
[398484004,1765728824679,1774.12349723,0.00015939,2]
[398484005,1765728846471,205.81759097,0.00015901,2]
[398484006,1765728857416,-150.0,0.00016006,2]
[398484007,1765728857450,-175.47575925,0.00016006,2]
[398484008,1765728857485,-230.49841453,0.00016028,2]
[398484009,1765728857518,-972.4,0.00016028,2]
[398484010,1765728857551,-500.0,0.00016028,2]
[398484011,1765728857584,-300.0,0.00016031,2]
[398484012,1765728857619,-229.36664584,0.00016032,2]
[398484013,1765728857654,-171.782,0.00016032,2]
[398484014,1765728857691,-500.0,0.00016032,2]
[398484015,1765728857725,-273.24849705,0.00016032,2]
[398484016,1765728857760,-500.0,0.00016032,2]
[398484017,1765728857794,-500.0,0.00016032,2]
[398484018,1765728857825,-459.61031338,0.00016032,2]
[398484019,1765728863800,-75.2467399,0.00016032,2]
[398484020,1765728863835,-500.0,0.00016032,2]
[398484021,1765728863871,-500.0,0.00016032,2]
[398484022,1765728863907,-500.0,0.00016032,2]
[398484023,1765728863942,-645.8634542,0.00016032,2]
[398484024,1765728863975,-1002.86,0.00016033,2]
[398484025,1765728888023,-326.2,0.00016023,3]
[398484026,1765728916598,574.12855637,0.00016024,2]
[398484027,1765728943589,500.0,0.00016028,2]
[398484028,1765728946244,769.81,0.00016026,2]
[398484029,1765728971103,500.0,0.00016028,2]
[398484030,1765728971332,500.0,0.00016032,2]
[398484031,1765728971577,500.0,0.00016032,2]
[398484032,1765728971831,500.0,0.00016032,2]
[398484033,1765728972073,500.0,0.00016032,2]
[398484040,1765729009095,434.3933886,0.00015219,2]
[398484043,1765729040914,2455.2638825,0.00016033,2]
[398484053,1765729083149,497.69307966,0.00013699,2]
[398484059,1765729111461,1552.35806005,0.00015936,2]
[398484062,1765729198550,63.96303282,0.0001509,2]
[398484063,1765729198578,135.88678918,0.0001509,2]
[398484064,1765729199325,838.13,0.00016028,2]
[398484065,1765729204626,219.77160096,0.00015512,2]
[398484066,1765729216065,574.12855637,0.00016033,2]
[398484067,1765729246233,151.0,0.00016033,2]
[398484068,1765729246595,151.0,0.00016033,2]
[398484069,1765729247231,151.0,0.00016033,2]
[398484070,1765729247890,151.0,0.00016033,2]
[398484071,1765729248573,151.0,0.00016033,2]
[398484072,1765729249144,151.0,0.00016033,2]
[398484073,1765729249659,151.0,0.00016033,2]
[398484074,1765729250289,151.0,0.00016033,2]
[398484075,1765729250864,151.0,0.00016033,2]
[398484076,1765729251507,151.0,0.00016033,2]
[398484077,1765729252409,151.0,0.00016033,2]
[398484078,1765729252770,151.0,0.00016033,2]
[398484079,1765729253473,151.0,0.00016033,2]
[398484080,1765729254317,151.0,0.00016033,2]
[398484081,1765729254814,151.0,0.00016033,2]
[398484082,1765729255472,151.0,0.00016033,2]
[398484083,1765729256133,151.0,0.00016033,2]
[398484084,1765729256797,282.0,0.00016033,2]
[398484085,1765729257420,151.0,0.00016033,2]
[398484087,1765729306955,171.782,0.00015964,2]
[398484088,1765729310751,164.66782336,0.00015512,2]
[398484089,1765729329424,899.81,0.00016028,2]
[398484090,1765729329571,899.81,0.00016032,2]
[398484091,1765729330199,899.81,0.00016032,2]
[398484092,1765729330322,899.81,0.00016032,2]
[398484093,1765729330418,899.81,0.00016032,2]
[398484094,1765729330562,396.59323013,0.00016032,2]
[398484095,1765729330589,503.21676987,0.00016032,2]
[398484096,1765729330840,899.81,0.00016032,2]
[398484097,1765729331129,899.81,0.00016032,2]
[398484098,1765729331431,899.81,0.00016032,2]
[398484099,1765729331684,899.81,0.00016032,2]
[398484102,1765729331932,899.81,0.00016032,2]
[398484103,1765729332184,899.81,0.00016032,2]
[398484104,1765729332433,899.81,0.00016032,2]
[398484105,1765729332738,899.81,0.00016032,2]
[398484106,1765729332988,899.81,0.00016032,2]
[398484107,1765729333241,899.81,0.00016032,2]
[398484108,1765729333513,498.69323013,0.00016032,2]
[398484109,1765729333540,401.11676987,0.00016032,2]
[398484110,1765729333922,899.81,0.00016032,2]
[398484111,1765729334029,899.81,0.00016032,2]
[398484112,1765729334255,899.81,0.00016032,2]
[398484113,1765729334501,899.81,0.00016032,2]
[398484114,1765729334806,899.81,0.00016032,2]
[398484115,1765729334982,899.81,0.00016032,2]
[398484116,1765729335243,899.92,0.00016032,2]
[398484117,1765729402026,1358.31330257,0.00015936,2]
[398484122,1765729515659,574.12855637,0.00016033,2]
[398484123,1765729518648,493.03420051,0.00016033,2]
[398484124,1765729612018,302.9249925,0.00015512,2]
[398484125,1765729615160,538.53331999,0.00015512,2]
[398484126,1765729618340,33.17885819,0.00015512,2]
[398484127,1765729618368,808.2794543,0.00015512,2]
[398484130,1765729730213,9191.7305457,0.00015933,2]
[398484131,1765729730248,10000.01,0.00015933,2]
[398484132,1765729730286,10000.01,0.00015933,2]
[398484133,1765729730325,834547.73740768,0.00015933,2]
[398484134,1765729742546,300.0,0.00015932,2]
[398484135,1765729752749,150.0,7.256e-05,2]
[398484136,1765729753176,166.5,7.915e-05,2]
[398484137,1765729753674,249.75,8.575e-05,2]
[398484138,1765729754361,333.0,9.235e-05,2]
[398484139,1765729754899,416.24,9.894e-05,2]
[398484140,1765729755045,499.49,0.00010554,2]
[398484141,1765729755332,582.74,0.00011214,2]
[398484142,1765729755773,665.99,0.00011873,2]
[398484143,1765729756167,749.24,0.00012533,2]
[398484144,1765729756734,832.49,0.00013192,2]
[398484145,1765729757073,-2774.05889499,0.00015933,2]
[398484146,1765729757266,-10000.01,0.00015933,2]
[398484147,1765729759782,-10000.01,0.00015933,2]
[398484148,1765729759823,-3486.43315163,0.00015933,2]
[398484149,1765729759857,-1188.52413974,0.00015935,2]
[398484150,1765729759936,-650.09541726,0.0001599,2]
[398484151,1765729759976,-10000.01,0.0001599,2]
[398484152,1765729760073,-10000.01,0.0001599,2]
[398484153,1765729760214,-10000.01,0.0001599,2]
[398484154,1765729762869,-3698.47273562,0.0001599,2]
[398484155,1765729762932,248.60094267,0.00013884,2]
[398484156,1765729768421,289.58827989,0.00013884,2]
[398484157,1765729797145,10000.01,0.00015091,2]
[398484158,1765729797170,2793.1752228,0.00015091,2]
[398484159,1765729804847,7206.8347772,0.000149,2]
[398484160,1765729804875,10000.01,0.000149,2]
[398484161,1765729804902,10000.01,0.000149,2]
[398484162,1765729804928,10000.01,0.000149,2]
[398484163,1765729804955,2567.37878411,0.000149,2]
[398484165,1765729828744,179.16,7.188e-05,2]
[398484166,1765729829071,358.32,7.841e-05,2]
[398484167,1765729829465,537.48,8.495e-05,2]
[398484168,1765729829869,716.64,9.148e-05,2]
[398484169,1765729830290,895.8,9.801e-05,2]
[398484170,1765729830728,1074.97,0.00010455,2]
[398484171,1765729831163,1254.13,0.00011108,2]
[398484172,1765729831594,1433.29,0.00011762,2]
[398484223,1765729832396,982.84121589,0.00012415,2]
[398484227,1765729832422,629.60878411,0.00012415,2]
[398484230,1765729832860,1791.61,0.00013069,2]
[398484234,1765729838514,-349.5403838,0.00016031,2]
[398484235,1765729838523,-422.50211209,0.00016032,2]
[398484236,1765729838534,-77.49788791,0.00016032,2]
[398484237,1765729838543,-500.0,0.00016032,2]
[398484238,1765729838552,-74.04642879,0.00016032,2]
[398484239,1765729838563,-425.95357121,0.00016032,2]
[398484240,1765729838572,-500.0,0.00016032,2]
[398484241,1765729838581,-500.0,0.00016032,2]
[398484242,1765729838590,-500.0,0.00016032,2]
[398484243,1765729838599,-494.23178059,0.00016032,2]
[398484244,1765729838610,-5.76821941,0.00016032,2]
[398484245,1765729838619,-277.06354054,0.00016032,2]
[398484246,1765729838651,-222.93645946,0.00016032,2]
[398484247,1765729838660,-500.0,0.00016032,2]
[398484248,1765729838669,-440.14626304,0.00016032,2]
[398484249,1765729838680,-59.85373696,0.00016032,2]
[398484250,1765729838689,-500.0,0.00016032,2]
[398484251,1765729838698,-500.0,0.00016032,2]
[398484252,1765729838706,-187.68,0.00016032,2]
[398484253,1765729838715,-500.0,0.00016032,2]
[398484254,1765729838723,-500.0,0.00016032,2]
[398484255,1765729838733,-500.0,0.00016032,2]
[398484256,1765729838742,-500.0,0.00016032,2]
[398484257,1765729838751,-500.0,0.00016032,2]
[398484258,1765729838760,-500.0,0.00016032,2]
[398484259,1765729838770,-500.0,0.00016032,2]
[398484260,1765729838779,-500.0,0.00016032,2]
[398484261,1765729838788,-500.0,0.00016032,2]
[398484262,1765729838796,-500.0,0.00016032,2]
[398484263,1765729838805,-500.0,0.00016032,2]
[398484264,1765729838815,-500.0,0.00016032,2]
[398484265,1765729838823,-500.0,0.00016032,2]
[398484266,1765729838832,-500.0,0.00016032,2]
[398484267,1765729838840,-500.0,0.00016032,2]
[398484268,1765729838849,-500.0,0.00016032,2]
[398484269,1765729838858,-500.0,0.00016032,2]
[398484270,1765729838867,-500.0,0.00016032,2]
[398484271,1765729838877,-533.52830584,0.00016032,2]
[398484272,1765729838886,-166.7853432,0.00016033,2]
[398484273,1765729838895,-574.12855637,0.00016033,2]
[398484274,1765729838905,-230.35482541,0.00016034,2]
[398484275,1765729838914,-3000.0,0.0001604,2]
[398484276,1765729838924,-3000.0,0.0001605,2]
[398484277,1765729838933,-3000.0,0.0001606,2]
[398484278,1765729838942,-3000.0,0.0001607,2]
[398484279,1765729838951,-838.13,0.00016079,2]
[398484280,1765729838959,-945.59613344,0.0001608,2]
[398484281,1765729838970,-283.08081952,0.0001608,2]
[398484282,1765729838981,-1771.32304704,0.0001608,2]
[398484283,1765729838990,-1868.76308759,0.0001609,2]
[398484284,1765729839009,-894.61203176,0.0001609,2]
[398484285,1765729839021,-236.62488065,0.0001609,2]
[398484286,1765729839030,-569.39255035,0.000161,2]
[398484287,1765729839040,-2430.60744965,0.000161,2]
[398484288,1765729839049,-196.2558676,0.00016104,2]
[398484289,1765729839057,-3000.0,0.0001611,2]
[398484290,1765729839066,-725.36124536,0.00016118,2]
[398484291,1765729839075,-1472.11867626,0.0001612,2]
[398484329,1765729840738,-1527.88132374,0.0001612,2]
[398484331,1765729840752,-500.0,0.00016128,2]
[398484334,1765729840764,-150.0,0.00016128,2]
[398484336,1765729840774,-3000.0,0.0001613,2]
[398484338,1765729840787,-259.79094626,0.00016131,2]
[398484339,1765729840796,-231.47690714,0.00016131,2]
[398484341,1765729840805,-838.13,0.00016132,2]
[398484342,1765729840815,-838.13,0.00016132,2]
[398484343,1765729840824,-838.13,0.00016132,2]
[398484344,1765729840834,-838.13,0.00016132,2]
[398484345,1765729840843,-838.13,0.00016132,2]
[398484346,1765729840853,-838.13,0.00016132,2]
[398484347,1765729840862,-838.13,0.00016132,2]
[398484348,1765729840872,-838.13,0.00016132,2]
[398484349,1765729840881,-838.13,0.00016132,2]
[398484350,1765729840892,-838.13,0.00016132,2]
[398484351,1765729840901,-838.13,0.00016132,2]
[398484352,1765729840910,-183.52092286,0.00016132,2]
[398484353,1765729840946,-654.60907714,0.00016132,2]
[398484354,1765729840955,-838.13,0.00016132,2]
[398484355,1765729840963,-838.13,0.00016132,2]
[398484356,1765729840973,-838.13,0.00016132,2]
[398484357,1765729840984,-838.13,0.00016132,2]
[398484358,1765729840994,-838.13,0.00016132,2]
[398484359,1765729841006,-838.13,0.00016132,2]
[398484360,1765729841014,-838.13,0.00016132,2]
[398484361,1765729841023,-762.05677745,0.00016132,2]
[398484362,1765729841034,-76.07322255,0.00016132,2]
[398484363,1765729841045,-838.13,0.00016132,2]
[398484364,1765729841055,-838.23,0.00016132,2]
[398484365,1765729841066,-3000.0,0.0001614,2]
[398484366,1765729841075,-3000.0,0.0001615,2]
[398484367,1765729841085,-3000.0,0.0001616,2]
[398484368,1765729841094,-2116.56567572,0.0001617,2]
[398484369,1765729841118,-254.22982774,0.0001617,2]
[398484384,1765729843569,-342.28354482,0.0001617,2]
[398484385,1765729843581,-286.92095172,0.0001617,2]
[398484386,1765729843590,-3000.0,0.0001618,2]
[398484387,1765729843599,-3000.0,0.0001619,2]
[398484388,1765729843609,-3000.0,0.000162,2]
[398484389,1765729843618,-3000.0,0.0001621,2]
[398484390,1765729843627,-3000.0,0.0001622,2]
[398484391,1765729843637,-113.07904828,0.0001623,2]
[398484392,1765729843650,-411.86987429,0.0001623,2]
[398484393,1765729843661,-1121.26959093,0.0001623,2]
[398484412,1765729846580,-1353.7814865,0.0001623,2]
[398484413,1765729846589,-3000.0,0.0001624,2]
[398484414,1765729846598,-1873.522874,0.0001625,2]
[398484415,1765729846609,-1126.477126,0.0001625,2]
[398484416,1765729846618,-3000.0,0.0001626,2]
[398484417,1765729846627,-500.0,0.00016265,2]
[398484418,1765729846637,-150.0,0.00016265,2]
[398484419,1765729846646,-3000.0,0.0001627,2]
[398484420,1765729846655,-3000.0,0.0001628,2]
[398484421,1765729846664,-3000.0,0.0001629,2]
[398484422,1765729846673,-3000.0,0.000163,2]
[398484423,1765729846683,-3000.0,0.0001631,2]
[398484424,1765729846692,-3000.0,0.0001632,2]
[398484425,1765729846703,-300.10338731,0.00016328,2]
[398484426,1765729846713,-445.75381162,0.00016328,2]
[398484427,1765729846722,-301.77756916,0.00016328,2]
[398484429,1765729846731,-1772.13356137,0.0001633,2]
[398484436,1765729862664,153.43,0.00012,2]
[398484437,1765729862965,153.43,0.00012,2]
[398484438,1765729863349,153.43,0.000121,2]
[398484439,1765729863965,153.43,0.000121,2]
[398484440,1765729864132,153.43,0.000122,2]
[398484441,1765729864234,153.43,0.000122,2]
[398484442,1765729864292,157.27439947,0.00015933,2]
[398484443,1765729864506,153.43,0.000123,2]
[398484444,1765729864962,153.43,0.000123,2]
[398484445,1765729865901,153.43,0.000124,2]
[398484446,1765729866692,153.43,0.000124,2]
[398484447,1765729866786,153.43,0.000125,2]
[398484448,1765729867006,153.43,0.000125,2]
[398484449,1765729867304,153.43,0.000126,2]
[398484450,1765729867739,153.43,0.000126,2]
[398484451,1765729868214,153.43,0.000127,2]
[398484452,1765729868547,153.43,0.000127,2]
[398484453,1765729868938,153.43,0.000128,2]
[398484454,1765729869227,153.43,0.000128,2]
[398484455,1765729869586,153.43,0.000129,2]
[398484456,1765729869906,153.43,0.000129,2]
[398484457,1765729870369,153.43,0.00013,2]
[398484458,1765729870684,153.43,0.00013,2]
[398484459,1765729870973,153.43,0.000131,2]
[398484460,1765729871262,153.43,0.000131,2]
[398484461,1765729871600,153.43,0.000131,2]
[398484462,1765729871884,153.43,0.000132,2]
[398484463,1765729872243,153.43,0.000132,2]
[398484464,1765729872628,153.43,0.000133,2]
[398484465,1765729872933,153.43,0.000133,2]
[398484466,1765729873239,153.43,0.000134,2]
[398484467,1765729873664,153.43,0.000134,2]
[398484468,1765729873870,153.43,0.000135,2]
[398484469,1765729874306,153.43,0.000135,2]
[398484470,1765729874473,153.43,0.000136,2]
[398484471,1765729874752,153.43,0.000136,2]
[398484472,1765729875036,153.43,0.000137,2]
[398484473,1765729875401,153.43,0.000137,2]
[398484474,1765729875692,153.43,0.000138,2]
[398484475,1765729875969,153.43,0.000138,2]
[398484476,1765729876242,153.43,0.000139,2]
[398484477,1765729876517,153.43,0.000139,2]
[398484478,1765729876855,153.43,0.00014,2]
[398484479,1765729877830,153.39,0.00012,2]
[398484482,1765729903118,824.06681642,0.00015933,2]
[398484483,1765729903145,10000.01,0.00015933,2]
[398484484,1765729903170,10000.01,0.00015933,2]
[398484485,1765729903196,10000.01,0.00015933,2]
[398484486,1765729903220,10000.01,0.00015933,2]
[398484487,1765729903246,10000.01,0.00015933,2]
[398484488,1765729903270,10000.01,0.00015933,2]
[398484489,1765729903294,10000.01,0.00015933,2]
[398484490,1765729903318,10000.01,0.00015933,2]
[398484491,1765729903343,10000.01,0.00015933,2]
[398484492,1765729906337,313.88,9.482e-05,2]
[398484493,1765729906461,627.76,0.00010344,2]
[398484494,1765729906649,941.64,0.00011206,2]
[398484495,1765729907060,1255.52,0.00012068,2]
[398484496,1765729907484,1569.41,0.0001293,2]
[398484497,1765729907881,1883.29,0.00013792,2]
[398484498,1765729908294,2197.17,0.00014654,2]
[398484499,1765729908701,1211.34,0.00015516,2]
[398484500,1765729918370,278.31897768,0.00012458,2]
[398484501,1765729922743,168.71,0.00012,2]
[398484502,1765729923022,168.71,0.00012,2]
[398484503,1765729923332,168.71,0.000121,2]
[398484504,1765729923602,168.71,0.000121,2]
[398484505,1765729923927,168.71,0.000122,2]
[398484506,1765729924866,168.71,0.000122,2]
[398484507,1765729925198,168.71,0.000122,2]
[398484508,1765729925525,168.71,0.000123,2]
[398484509,1765729925880,168.71,0.000123,2]
[398484510,1765729926175,168.71,0.000124,2]
[398484511,1765729926869,168.71,0.000124,2]
[398484512,1765729926937,168.71,0.000125,2]
[398484513,1765729927202,168.71,0.000125,2]
[398484514,1765729927541,168.71,0.000125,2]
[398484515,1765729927853,168.71,0.000126,2]
[398484516,1765729928174,168.71,0.000126,2]
[398484517,1765729928454,168.71,0.000127,2]
[398484518,1765729928736,168.71,0.000127,2]
[398484519,1765729929035,168.71,0.000127,2]
[398484520,1765729929580,-1299.71,0.00015516,2]
[398484521,1765729929991,168.71,0.000128,2]
[398484522,1765729930364,168.71,0.000128,2]
[398484523,1765729930401,500.0,0.00013273,2]
[398484524,1765729930451,1000.0,0.00013821,2]
[398484525,1765729930510,1500.0,0.00014368,2]
[398484526,1765729930631,168.71,0.000129,2]
[398484527,1765729930977,1766.0,0.000134,2]
[398484528,1765729931028,168.71,0.000129,2]
[398484529,1765729931292,168.71,0.000129,2]
[398484530,1765729931663,168.71,0.00013,2]
[398484531,1765729932047,168.71,0.00013,2]
[398484532,1765729932461,168.71,0.000131,2]
[398484533,1765729932742,168.71,0.000131,2]
[398484534,1765729933034,168.71,0.000131,2]
[398484535,1765729933357,168.71,0.000132,2]
[398484536,1765729933638,168.71,0.000132,2]
[398484537,1765729933946,168.71,0.000133,2]
[398484538,1765729934229,441.36,0.00013699,2]
[398484539,1765729934253,58.64,0.00013699,2]
[398484540,1765729934304,1000.0,0.00014247,2]
[398484541,1765729934407,168.71,0.000133,2]
[398484542,1765729934697,168.71,0.000134,2]
[398484543,1765729934963,168.71,0.000134,2]
[398484544,1765729935386,168.71,0.000134,2]
[398484545,1765729935593,168.71,0.000135,2]
[398484546,1765729935746,500.0,0.00013273,2]
[398484547,1765729935801,1000.0,0.00013821,2]
[398484548,1765729935862,1500.0,0.00014368,2]
[398484549,1765729935891,168.71,0.000135,2]
[398484550,1765729936200,168.71,0.000136,2]
[398484551,1765729936524,168.71,0.000136,2]
[398484552,1765729937407,168.71,0.000136,2]
[398484553,1765729937595,168.71,0.000137,2]
[398484554,1765729937784,168.71,0.000137,2]
[398484555,1765729937876,168.71,0.000138,2]
[398484556,1765729938034,168.71,0.000138,2]
[398484557,1765729938366,168.71,0.000138,2]
[398484558,1765729938728,168.71,0.000139,2]
[398484559,1765729939014,168.71,0.000139,2]
[398484560,1765729939400,500.0,0.00013699,2]
[398484561,1765729939430,168.71,0.00014,2]
[398484562,1765729939461,1000.0,0.00014247,2]
[398484563,1765729939713,168.71,0.00014,2]
[398484564,1765729940268,1000.0,0.00013821,2]
[398484565,1765729940325,404.59,0.00013273,2]
[398484566,1765729940348,95.41,0.00013273,2]
[398484567,1765729940401,1500.0,0.00014368,2]
[398484568,1765729951674,439.85533529,0.00015932,2]
[398484569,1765729952087,266.55744029,0.00015932,2]
[398484570,1765729954579,500.0,0.00015932,2]
[398484571,1765729954607,500.0,0.00015932,2]
[398484572,1765729954636,500.0,0.00015932,2]
[398484573,1765729954662,500.0,0.00015932,2]
[398484574,1765729954698,163.77836539,0.00015932,2]
[398484575,1765729955401,500.0,0.00015932,2]
[398484576,1765729956178,500.0,0.00015932,2]
[398484577,1765729956207,500.0,0.00015932,2]
[398484578,1765729956243,500.0,0.00015932,2]
[398484579,1765729956363,500.0,0.00015932,2]
[398484580,1765729957101,450.15916011,0.00015932,2]
[398484581,1765729957131,500.0,0.00015932,2]
[398484582,1765729957159,500.0,0.00015932,2]
[398484583,1765729957211,500.0,0.00015932,2]
[398484584,1765729957246,500.0,0.00015932,2]
[398484585,1765729957287,548.71173251,0.00015932,2]
[398484586,1765729957319,35.53796641,0.00015932,2]
[398484587,1765729957344,416.52470643,0.00015932,2]
[398484588,1765729957379,500.0,0.00015932,2]
[398484589,1765729957437,500.0,0.00015932,2]
[398484590,1765729957541,500.0,0.00015932,2]
[398484591,1765729957580,525.0,0.00015932,2]
[398484592,1765729957631,238.30515969,0.00015932,2]
[398484593,1765729966241,179.26699665,0.00015932,2]
[398484594,1765729970849,1148.78888828,0.00015918,2]
[398484595,1765729975430,250.0,0.00015932,2]
[398484596,1765729982386,166.84,0.00012,2]
[398484597,1765729982582,300.0,0.00015932,2]
[398484598,1765729982665,166.84,0.000123,2]